fUST/lending_fUST_20260304
["ID","MTS","AMOUNT","RATE_DAILY","PERIOD"]
[407651974,1772617834006,-500.0,0.00010958,2]
[407651975,1772617834016,-500.0,0.00010958,2]
[407651976,1772617834025,-500.0,0.00010958,2]
[407651977,1772617834035,-500.0,0.00010958,2]
[407651978,1772617834045,-647.1,0.00010958,2]
[407651979,1772617834054,-500.0,0.00010958,2]
[407651980,1772617834064,-500.0,0.00010958,2]
[407651981,1772617834075,-1219.3,0.00010958,2]
[407651982,1772617834085,-500.0,0.00010958,2]
[407651983,1772617834095,-433.69423037,0.00010958,2]
[407651984,1772617834105,-786.58,0.00010958,2]
[407651985,1772617834115,-797.88,0.00010958,2]
[407651986,1772617834124,-5562.79,0.00010958,2]
[407651987,1772617834134,-500.0,0.00010958,2]
[407651988,1772617834143,-500.0,0.00010958,2]
[407651989,1772617834152,-500.0,0.00010958,2]
[407651990,1772617834162,-848.51,0.00010958,2]
[407651991,1772617834171,-413.83501088,0.00010958,2]
[407651992,1772617834181,-500.0,0.00010958,2]
[407651993,1772617834191,-500.0,0.00010958,2]
[407651994,1772617834200,-500.0,0.00010958,2]
[407651995,1772617834210,-664.25,0.00010958,2]
[407651996,1772617834220,-1000.0,0.00010958,2]
[407651997,1772617834229,-500.0,0.00010958,2]
[407651998,1772617834239,-517.88,0.00010958,2]
[407651999,1772617834248,-868.85,0.00010958,2]
[407652000,1772617834258,-4321.67,0.00010958,2]
[407652001,1772617834268,-500.0,0.00010958,2]
[407652002,1772617834278,-2117.89,0.00010958,2]
[407652003,1772617834288,-500.0,0.00010958,2]
[407652004,1772617834298,-500.0,0.00010958,2]
[407652005,1772617834307,-982.18,0.00010958,2]
[407652006,1772617834317,-500.0,0.00010958,2]
[407652007,1772617834326,-500.0,0.00010958,2]
[407652008,1772617834336,-500.0,0.00010958,2]
[407652009,1772617834345,-500.0,0.00010958,2]
[407652010,1772617834355,-3040.43,0.00010958,2]
[407652011,1772617834364,-500.0,0.00010958,2]
[407652012,1772617834374,-2747.56,0.00010958,2]
[407652013,1772617834384,-2652.77,0.00010958,2]
[407652014,1772617834393,-500.0,0.00010958,2]
[407652015,1772617834403,-500.0,0.00010958,2]
[407652016,1772617834412,-500.0,0.00010958,2]
[407652017,1772617834421,-930.13,0.00010958,2]
[407652018,1772617834431,-500.0,0.00010958,2]
[407652019,1772617834440,-618.3,0.00010958,2]
[407652020,1772617834450,-1590.46,0.00010958,2]
[407652021,1772617834459,-949.98,0.00010958,2]
[407652022,1772617834468,-500.0,0.00010958,2]
[407652023,1772617834478,-500.0,0.00010958,2]
[407652024,1772617834487,-500.0,0.00010958,2]
[407652025,1772617834496,-500.0,0.00010958,2]
[407652026,1772617834505,-1103.86,0.00010958,2]
[407652027,1772617834515,-1159.72,0.00010958,2]
[407652028,1772617834524,-500.0,0.00010958,2]
[407652029,1772617834537,-151.0,0.00010958,2]
[407652030,1772617834546,-1867.99,0.00010958,2]
[407652031,1772617834556,-564.43,0.00010958,2]
[407652032,1772617834565,-500.0,0.00010958,2]
[407652033,1772617834575,-500.0,0.00010958,2]
[407652034,1772617834585,-1947.15,0.00010958,2]
[407652035,1772617834595,-500.0,0.00010958,2]
[407652036,1772617834604,-922.34,0.00010958,2]
[407652037,1772617834613,-500.0,0.00010958,2]
[407652038,1772617834622,-866.42,0.00010958,2]
[407652039,1772617834632,-1778.19,0.00010958,2]
[407652040,1772617834642,-500.0,0.00010958,2]
[407652041,1772617834651,-500.0,0.00010958,2]
[407652042,1772617834660,-500.0,0.00010958,2]
[407652043,1772617834669,-500.0,0.00010958,2]
[407652044,1772617834679,-936.74,0.00010958,2]
[407652045,1772617834688,-1395.61,0.00010958,2]
[407652046,1772617834698,-2852.98,0.00010958,2]
[407652047,1772617834707,-500.0,0.00010958,2]
[407652048,1772617834717,-500.0,0.00010958,2]
[407652049,1772617834727,-500.0,0.00010958,2]
[407652050,1772617834736,-565.22,0.00010958,2]
[407652051,1772617834745,-854.11,0.00010958,2]
[407652052,1772617834755,-500.0,0.00010958,2]
[407652053,1772617834767,-500.0,0.00010958,2]
[407652054,1772617834776,-1012.79,0.00010958,2]
[407652055,1772617834787,-717.4,0.00010958,2]
[407652056,1772617834796,-4531.81,0.00010958,2]
[407652057,1772617834806,-583.78,0.00010958,2]
[407652058,1772617834815,-500.0,0.00010958,2]
[407652059,1772617834824,-712.38,0.00010958,2]
[407652060,1772617834833,-1383.61,0.00010958,2]
[407652061,1772617834843,-2846.78,0.00010958,2]
[407652062,1772617834854,-1200.76,0.00010958,2]
[407652063,1772617834864,-654.68,0.00010958,2]
[407652064,1772617834874,-500.0,0.00010958,2]
[407652065,1772617834883,-500.0,0.00010958,2]
[407652066,1772617834892,-500.0,0.00010958,2]
[407652067,1772617834902,-500.0,0.00010958,2]
[407652068,1772617834911,-2310.57,0.00010958,2]
[407652069,1772617834921,-500.0,0.00010958,2]
[407652070,1772617834930,-500.0,0.00010958,2]
[407652071,1772617834944,-500.0,0.00010958,2]
[407652072,1772617834954,-1043.13,0.00010958,2]
[407652073,1772617834964,-2707.27,0.00010958,2]
[407652074,1772617834974,-500.0,0.00010958,2]
[407652075,1772617834984,-950.11,0.00010958,2]
[407652076,1772617834993,-561.25,0.00010958,2]
[407652077,1772617835003,-624.1,0.00010958,2]
[407652078,1772617835014,-942.1,0.00010958,2]
[407652079,1772617835023,-500.0,0.00010958,2]
[407652080,1772617835034,-500.0,0.00010958,2]
[407652081,1772617835043,-500.0,0.00010958,2]
[407652082,1772617835053,-4183.06,0.00010958,2]
[407652083,1772617835063,-1881.42,0.00010958,2]
[407652084,1772617835072,-500.0,0.00010958,2]
[407652085,1772617835082,-998.03,0.00010958,2]
[407652086,1772617835092,-500.0,0.00010958,2]
[407652087,1772617835101,-895.84,0.00010958,2]
[407652088,1772617835111,-500.0,0.00010958,2]
[407652089,1772617835120,-1288.81,0.00010958,2]
[407652090,1772617835130,-500.0,0.00010958,2]
[407652091,1772617835140,-500.0,0.00010958,2]
[407652092,1772617835149,-3223.34,0.00010958,2]
[407652093,1772617835159,-3042.17,0.00010958,2]
[407652094,1772617835169,-500.0,0.00010958,2]
[407652095,1772617835178,-500.0,0.00010958,2]
[407652096,1772617835188,-761.35,0.00010958,2]
[407652097,1772617835197,-832.03,0.00010958,2]
[407652098,1772617835207,-587.84,0.00010958,2]
[407652099,1772617835217,-633.571772,0.00010958,2]
[407652100,1772617835227,-2847.77,0.00010958,2]
[407652101,1772617835236,-500.0,0.00010958,2]
[407652102,1772617835245,-891.56,0.00010958,2]
[407652103,1772617835255,-500.27335676,0.00010958,2]
[407652104,1772617835266,-1807.2,0.00010958,2]
[407652105,1772617835277,-180.85784992,0.00010958,2]
[407652106,1772617835286,-500.0,0.00010958,2]
[407652107,1772617835296,-1187.44,0.00010958,2]
[407652108,1772617835306,-675.21,0.00010958,2]
[407652109,1772617835316,-500.0,0.00010958,2]
[407652110,1772617835325,-1566.48,0.00010958,2]
[407652111,1772617835335,-2419.33,0.00010958,2]
[407652112,1772617835345,-1741.53,0.00010958,2]
[407652113,1772617835354,-1421.03,0.00010958,2]
[407652114,1772617835364,-500.0,0.00010958,2]
[407652115,1772617835374,-6393.67,0.00010958,2]
[407652116,1772617835383,-500.0,0.00010958,2]
[407652117,1772617835393,-1140.09,0.00010958,2]
[407652118,1772617835403,-500.0,0.00010958,2]
[407652119,1772617835413,-1484.52,0.00010958,2]
[407652120,1772617835423,-500.0,0.00010958,2]
[407652121,1772617835432,-500.0,0.00010958,2]
[407652122,1772617835442,-500.0,0.00010958,2]
[407652123,1772617835452,-1177.91,0.00010958,2]
[407652124,1772617835462,-2186.1,0.00010958,2]
[407652125,1772617835471,-500.0,0.00010958,2]
[407652126,1772617835481,-500.0,0.00010958,2]
[407652127,1772617835490,-2123.32,0.00010958,2]
[407652128,1772617835500,-500.0,0.00010958,2]
[407652129,1772617835511,-500.0,0.00010958,2]
[407652130,1772617835520,-2748.36,0.00010958,2]
[407652131,1772617835530,-635.11,0.00010958,2]
[407652132,1772617835540,-500.0,0.00010958,2]
[407652133,1772617835549,-500.0,0.00010958,2]
[407652134,1772617835558,-500.0,0.00010958,2]
[407652135,1772617835568,-500.0,0.00010958,2]
[407652136,1772617835577,-901.04,0.00010958,2]
[407652137,1772617835587,-500.0,0.00010958,2]
[407652138,1772617835598,-945.73,0.00010958,2]
[407652139,1772617835607,-390.28027856,0.00010958,2]
[407652140,1772617835616,-500.0,0.00010958,2]
[407652141,1772617835626,-500.0,0.00010958,2]
[407652142,1772617835636,-898.15,0.00010958,2]
[407652143,1772617835647,-500.0,0.00010958,2]
[407652144,1772617835658,-500.0,0.00010958,2]
[407652145,1772617835668,-500.0,0.00010958,2]
[407652146,1772617835677,-500.0,0.00010958,2]
[407652147,1772617835688,-500.0,0.00010958,2]
[407652148,1772617835697,-500.0,0.00010958,2]
[407652149,1772617835707,-500.0,0.00010958,2]
[407652150,1772617835716,-500.0,0.00010958,2]
[407652151,1772617835725,-500.0,0.00010958,2]
[407652152,1772617835734,-500.0,0.00010958,2]
[407652153,1772617835744,-929.21,0.00010958,2]
[407652154,1772617835754,-500.0,0.00010958,2]
[407652155,1772617835765,-1120.99,0.00010958,2]
[407652156,1772617835775,-500.0,0.00010958,2]
[407652157,1772617835784,-823.41,0.00010958,2]
[407652158,1772617835794,-500.0,0.00010958,2]
[407652159,1772617835804,-568.0,0.00010958,2]
[407652160,1772617835813,-2436.02,0.00010958,2]
[407652161,1772617835822,-500.0,0.00010958,2]
[407652162,1772617835832,-629.98,0.00010958,2]
[407652163,1772617835841,-1213.06,0.00010958,2]
[407652164,1772617835851,-1782.38,0.00010958,2]
[407652165,1772617835860,-500.0,0.00010958,2]
[407652166,1772617835869,-500.0,0.00010958,2]
[407652167,1772617835879,-500.0,0.00010958,2]
[407652168,1772617835889,-5113.23,0.00010958,2]
[407652169,1772617835899,-695.28,0.00010958,2]
[407652170,1772617835912,-1131.4,0.00010958,2]
[407652171,1772617835922,-1236.66,0.00010958,2]
[407652172,1772617835933,-500.0,0.00010958,2]
[407652173,1772617835945,-500.0,0.00010958,2]
[407652174,1772617835954,-333.35679814,0.00010958,2]
[407652175,1772617835963,-500.0,0.00010958,2]
[407652176,1772617835973,-500.0,0.00010958,2]
[407652177,1772617835983,-952.55,0.00010958,2]
[407652178,1772617835993,-500.0,0.00010958,2]
[407652179,1772617836002,-1229.43,0.00010958,2]
[407652180,1772617836015,-1031.31,0.00010958,2]
[407652181,1772617836024,-1175.42,0.00010958,2]
[407652182,1772617836034,-1199.39,0.00010958,2]
[407652183,1772617836044,-500.0,0.00010958,2]
[407652184,1772617836054,-500.0,0.00010958,2]
[407652185,1772617836064,-500.0,0.00010958,2]
[407652186,1772617836073,-746.42,0.00010958,2]
[407652187,1772617836083,-904.27,0.00010958,2]
[407652188,1772617836093,-605.85,0.00010958,2]
[407652189,1772617836103,-1105.67,0.00010958,2]
[407652190,1772617836113,-350.72605845,0.00010958,2]
[407652191,1772617836123,-558.93,0.00010958,2]
[407652192,1772617836133,-500.0,0.00010958,2]
[407652193,1772617836142,-11562.31,0.00010958,2]
[407652194,1772617836152,-15213.18,0.00010958,2]
[407652195,1772617836162,-751.02,0.00010958,2]
[407652196,1772617836173,-500.0,0.00010958,2]
[407652197,1772617836182,-769.53,0.00010958,2]
[407652198,1772617836192,-500.0,0.00010958,2]
[407652199,1772617836202,-571.04441399,0.00010958,2]
[407652200,1772617836211,-1331.28,0.00010958,2]
[407652201,1772617836221,-500.0,0.00010958,2]
[407652202,1772617836230,-500.0,0.00010958,2]
[407652203,1772617836241,-500.0,0.00010958,2]
[407652204,1772617836251,-500.0,0.00010958,2]
[407652205,1772617836263,-6684.7,0.00010958,2]
[407652206,1772617836273,-500.0,0.00010958,2]
[407652207,1772617836283,-500.0,0.00010958,2]
[407652208,1772617836292,-1225.97,0.00010958,2]
[407652209,1772617836302,-509.88,0.00010958,2]
[407652210,1772617836311,-500.0,0.00010958,2]
[407652211,1772617836321,-949.08,0.00010958,2]
[407652212,1772617836330,-500.0,0.00010958,2]
[407652213,1772617836339,-500.0,0.00010958,2]
[407652214,1772617836348,-305.67914692,0.00010958,2]
[407652215,1772617836358,-500.0,0.00010958,2]
[407652216,1772617836367,-500.0,0.00010958,2]
[407652217,1772617836376,-621.81248572,0.00010958,2]
[407652218,1772617836386,-763.16,0.00010958,2]
[407652219,1772617836397,-500.0,0.00010958,2]
[407652220,1772617836406,-1658.36,0.00010958,2]
[407652221,1772617836415,-847.56,0.00010958,2]
[407652222,1772617836426,-1574.92,0.00010958,2]
[407652223,1772617836438,-779.49,0.00010958,2]
[407652224,1772617836448,-358.69966933,0.00010958,2]
[407652225,1772617836459,-500.0,0.00010958,2]
[407652226,1772617836468,-500.0,0.00010958,2]
[407652227,1772617836478,-1051.82,0.00010958,2]
[407652228,1772617836488,-500.0,0.00010958,2]
[407652229,1772617836498,-500.0,0.00010958,2]
[407652230,1772617836508,-3607.14,0.00010958,2]
[407652231,1772617836519,-500.0,0.00010958,2]
[407652232,1772617836528,-500.0,0.00010958,2]
[407652233,1772617836538,-500.0,0.00010958,2]
[407652234,1772617836547,-1585.47,0.00010958,2]
[407652235,1772617836558,-1213.87,0.00010958,2]
[407652236,1772617836570,-500.0,0.00010958,2]
[407652237,1772617836580,-3861.27,0.00010958,2]
[407652238,1772617836590,-852.04,0.00010958,2]
[407652239,1772617836600,-2546.54,0.00010958,2]
[407652240,1772617836608,-629.28,0.00010958,2]
[407652241,1772617836616,-2720.84,0.00010958,2]
[407652242,1772617836624,-500.0,0.00010958,2]
[407652243,1772617836632,-500.0,0.00010958,2]
[407652244,1772617836641,-500.0,0.00010958,2]
[407652245,1772617836649,-1413.12,0.00010958,2]
[407652246,1772617836657,-636.37,0.00010958,2]
[407652247,1772617836666,-500.0,0.00010958,2]
[407652248,1772617836675,-541.59,0.00010958,2]
[407652249,1772617836687,-500.0,0.00010958,2]
[407652250,1772617836698,-500.0,0.00010958,2]
[407652251,1772617836709,-500.0,0.00010958,2]
[407652252,1772617836719,-3356.39,0.00010958,2]
[407652253,1772617836729,-2572.97,0.00010958,2]
[407652254,1772617836740,-1537.83,0.00010958,2]
[407652255,1772617836751,-500.0,0.00010958,2]
[407652256,1772617836762,-500.0,0.00010958,2]
[407652257,1772617836771,-500.0,0.00010958,2]
[407652258,1772617836781,-500.0,0.00010958,2]
[407652259,1772617836792,-500.0,0.00010958,2]
[407652260,1772617836802,-500.0,0.00010958,2]
[407652261,1772617836812,-376.31435084,0.00010958,2]
[407652262,1772617836821,-500.0,0.00010958,2]
[407652263,1772617836830,-1474.75,0.00010958,2]
[407652264,1772617836840,-500.0,0.00010958,2]
[407652265,1772617836850,-2524.97,0.00010958,2]
[407652266,1772617836861,-2018.36,0.00010958,2]
[407652267,1772617836871,-3907.22,0.00010958,2]
[407652268,1772617836881,-500.0,0.00010958,2]
[407652269,1772617836890,-263.49715932,0.00010958,2]
[407652270,1772617837206,-500.0,0.00010958,2]
[407652271,1772617837218,-770.1,0.00010958,2]
[407652272,1772617837228,-500.0,0.00010958,2]
[407652273,1772617837238,-688.29,0.00010958,2]
[407652274,1772617837247,-1541.82,0.00010958,2]
[407652275,1772617837259,-1328.44,0.00010958,2]
[407652276,1772617837268,-500.0,0.00010958,2]
[407652277,1772617837277,-4788.19,0.00010958,2]
[407652278,1772617837287,-500.0,0.00010958,2]
[407652279,1772617837298,-500.0,0.00010958,2]
[407652280,1772617837308,-500.0,0.00010958,2]
[407652281,1772617837318,-518.96,0.00010958,2]
[407652282,1772617837328,-5367.11,0.00010958,2]
[407652283,1772617837338,-582.94,0.00010958,2]
[407652284,1772617837347,-500.0,0.00010958,2]
[407652285,1772617837357,-500.0,0.00010958,2]
[407652286,1772617837367,-500.0,0.00010958,2]
[407652287,1772617837377,-3103.7,0.00010958,2]
[407652288,1772617837387,-545.39,0.00010958,2]
[407652289,1772617837398,-500.0,0.00010958,2]
[407652290,1772617837409,-1182.0,0.00010958,2]
[407652291,1772617837418,-1414.38,0.00010958,2]
[407652292,1772617837428,-500.0,0.00010958,2]
[407652293,1772617837439,-500.0,0.00010958,2]
[407652294,1772617837449,-500.0,0.00010958,2]
[407652295,1772617837459,-1964.86,0.00010958,2]
[407652296,1772617837469,-500.0,0.00010958,2]
[407652297,1772617837480,-2340.3,0.00010958,2]
[407652298,1772617837490,-6787.26,0.00010958,2]
[407652299,1772617837500,-500.0,0.00010958,2]
[407652300,1772617837511,-500.0,0.00010958,2]
[407652301,1772617837521,-500.0,0.00010958,2]
[407652302,1772617837531,-500.0,0.00010958,2]
[407652303,1772617837542,-507.8,0.00010958,2]
[407652304,1772617837551,-15903.55,0.00010958,2]
[407652305,1772617837561,-15596.9,0.00010958,2]
[407652306,1772617837571,-500.0,0.00010958,2]
[407652307,1772617837583,-500.0,0.00010958,2]
[407652308,1772617837593,-500.0,0.00010958,2]
[407652309,1772617837603,-500.0,0.00010958,2]
[407652310,1772617837613,-4100.83,0.00010958,2]
[407652311,1772617837622,-551.90061943,0.00010958,2]
[407652312,1772617837632,-551.49,0.00010958,2]
[407652313,1772617837641,-500.0,0.00010958,2]
[407652314,1772617837651,-976.08,0.00010958,2]
[407652315,1772617837665,-768.94,0.00010958,2]
[407652316,1772617837676,-500.0,0.00010958,2]
[407652317,1772617837686,-500.0,0.00010958,2]
[407652318,1772617837696,-3342.49,0.00010958,2]
[407652319,1772617837706,-500.0,0.00010958,2]
[407652320,1772617837717,-500.0,0.00010958,2]
[407652321,1772617837726,-500.0,0.00010958,2]
[407652322,1772617837737,-674.05,0.00010958,2]
[407652323,1772617837747,-500.0,0.00010958,2]
[407652324,1772617837758,-1805.54,0.00010958,2]
[407652325,1772617837769,-17775.52,0.00010958,2]
[407652326,1772617837780,-500.0,0.00010958,2]
[407652327,1772617837790,-500.0,0.00010958,2]
[407652328,1772617837800,-500.0,0.00010958,2]
[407652329,1772617837811,-500.0,0.00010958,2]
[407652330,1772617837822,-919.83,0.00010958,2]
[407652331,1772617837832,-500.0,0.00010958,2]
[407652332,1772617837842,-161.90345985,0.00010958,2]
[407652333,1772617837852,-3671.0,0.00010958,2]
[407652334,1772617837862,-500.0,0.00010958,2]
[407652335,1772617837873,-500.0,0.00010958,2]
[407652336,1772617837883,-500.0,0.00010958,2]
[407652337,1772617837896,-500.0,0.00010958,2]
[407652338,1772617837907,-348.30279508,0.00010958,2]
[407652339,1772617837916,-500.0,0.00010958,2]
[407652340,1772617837927,-742.17,0.00010958,2]
[407652341,1772617837940,-4568.92,0.00010958,2]
[407652342,1772617837951,-500.0,0.00010958,2]
[407652343,1772617837961,-1224.1,0.00010958,2]
[407652344,1772617837971,-710.81,0.00010958,2]
[407652345,1772617837981,-1407.78,0.00010958,2]
[407652346,1772617837991,-670.99,0.00010958,2]
[407652347,1772617838001,-1005.85,0.00010958,2]
[407652348,1772617838015,-522.36,0.00010958,2]
[407652349,1772617838024,-500.0,0.00010958,2]
[407652350,1772617838035,-1105.12,0.00010958,2]
[407652351,1772617838045,-500.0,0.00010958,2]
[407652352,1772617838055,-875.58,0.00010958,2]
[407652353,1772617838066,-500.0,0.00010958,2]
[407652354,1772617838076,-500.0,0.00010958,2]
[407652355,1772617838086,-3107.68,0.00010958,2]
[407652356,1772617838095,-500.0,0.00010958,2]
[407652357,1772617838106,-826.27,0.00010958,2]
[407652358,1772617838116,-500.0,0.00010958,2]
[407652360,1772617838127,-500.0,0.00010958,2]
[407652362,1772617838137,-3771.67,0.00010958,2]
[407652363,1772617838147,-500.0,0.00010958,2]
[407652364,1772617838156,-2250.86,0.00010958,2]
[407652365,1772617838167,-9492.60705047,0.00010958,2]
[407652368,1772617838213,-1191.09624936,0.00010958,2]
[407652369,1772617838225,-618.65670017,0.00010958,2]
[407652370,1772617838236,-1023.53329983,0.00010958,2]
[407652376,1772617839301,-2229.02670017,0.00010958,2]
[407652377,1772617839325,-564.84,0.00010958,2]
[407652378,1772617839347,-500.0,0.00010958,2]
[407652379,1772617839363,-500.0,0.00010958,2]
[407652380,1772617839379,-3351.82907801,0.00010958,2]
[407652519,1772617841897,-3314.18092199,0.00010958,2]
[407652521,1772617841907,-1281.18,0.00010958,2]
[407652524,1772617841916,-500.0,0.00010958,2]
[407652526,1772617841926,-500.0,0.00010958,2]
[407652528,1772617841939,-785.85,0.00010958,2]
[407652530,1772617841948,-500.0,0.00010958,2]
[407652532,1772617841957,-500.0,0.00010958,2]
[407652534,1772617841966,-500.0,0.00010958,2]
[407652536,1772617841977,-641.48,0.00010958,2]
[407652538,1772617841986,-500.0,0.00010958,2]
[407652540,1772617841996,-500.0,0.00010958,2]
[407652542,1772617842006,-27598.45404909,0.00010958,2]
[407652737,1772617844038,-1857.41132942,0.00010958,2]
[407652934,1772617846579,-9623.56082657,0.00010958,2]
[407652936,1772617846633,-1702.28009644,0.00010958,2]
[407652937,1772618074011,168.933305,4.959e-05,2]
[407652938,1772618176287,5786.5,9.5e-05,3]
[407652969,1772619002516,150.73,6.9e-05,2]
[407653002,1772619031595,-3792.79452271,7.524e-05,2]
[407653005,1772619031608,-1207.20547729,7.524e-05,2]
[407653007,1772619031619,-150.73,7.6e-05,2]
[407653009,1772619031629,-2016.88937842,8.791e-05,2]
[407653011,1772619031639,-543.0,8.791e-05,2]
[407653013,1772619031650,-5000.0,8.88e-05,2]
[407653015,1772619031660,-1200.0,8.968e-05,2]
[407653017,1772619031670,-300.0,8.969e-05,2]
[407653019,1772619031680,-300.0,8.969e-05,2]
[407653021,1772619031690,-300.0,8.969e-05,2]
[407653023,1772619031700,-300.0,8.969e-05,2]
[407653025,1772619031710,-473.8075791,9.107e-05,2]
[407653027,1772619031721,-1604.0,9.865e-05,2]
[407653030,1772619031732,-300.0,9.866e-05,2]
[407653033,1772619031741,-420.0,9.866e-05,2]
[407653036,1772619031752,-4770.44241712,9.917e-05,2]
[407653039,1772619031762,-485.70998,9.917e-05,2]
[407653041,1772619031772,-168.933305,9.917e-05,2]
[407653043,1772619031782,-192.69137868,0.0001,2]
[407653046,1772619031792,-487.77836994,0.0001,2]
[407653048,1772619031803,-1045.23028016,0.0001,2]
[407653050,1772619031812,-300.0,0.00010013,2]
[407653052,1772619031823,-300.0,0.00010013,2]
[407653054,1772619031833,-300.0,0.00010013,2]
[407653056,1772619031843,-300.0,0.00010013,2]
[407653058,1772619031853,-300.0,0.00010013,2]
[407653060,1772619031862,-300.0,0.00010013,2]
[407653062,1772619031872,-300.0,0.00010013,2]
[407653064,1772619031882,-300.0,0.00010013,2]
[407653066,1772619031891,-300.0,0.00010013,2]
[407653068,1772619031902,-300.0,0.00010013,2]
[407653070,1772619031911,-300.0,0.00010013,2]
[407653072,1772619031922,-300.0,0.00010013,2]
[407653074,1772619031932,-300.0,0.00010013,2]
[407653077,1772619031942,-300.0,0.00010013,2]
[407653079,1772619031951,-300.0,0.00010013,2]
[407653081,1772619031962,-444.13857441,0.00010172,2]
[407653083,1772619031972,-1957.856,0.00010409,2]
[407653085,1772619031981,-2230.315306,0.00010409,2]
[407653087,1772619031991,-1974.61967244,0.00010464,2]
[407653089,1772619032001,-638.0,0.0001047,2]
[407653091,1772619032011,-2264.626,0.0001047,2]
[407653093,1772619032020,-638.12628144,0.0001047,2]
[407653097,1772619032045,-750.87371856,0.0001047,2]
[407653099,1772619032055,-432.0,0.0001047,2]
[407653101,1772619032064,-220.32202132,0.0001047,2]
[407653233,1772619038010,-2925.50161944,0.00010365,2]
[407653236,1772619038020,-509.67797868,0.0001047,2]
[407653238,1772619038030,-250.0,0.00010494,2]
[407653240,1772619038041,-500.0,0.00010494,2]
[407653242,1772619038051,-291.61880939,0.00010494,2]
[407653244,1772619038061,-250.0,0.00010494,2]
[407653246,1772619038070,-500.0,0.00010494,2]
[407653248,1772619038080,-250.0,0.00010494,2]
[407653249,1772619038090,-500.0,0.00010494,2]
[407653251,1772619038101,-250.0,0.00010494,2]
[407653254,1772619038111,-500.0,0.00010494,2]
[407653256,1772619038122,-250.0,0.00010494,2]
[407653258,1772619038131,-500.0,0.00010494,2]
[407653260,1772619038140,-168.3888056,0.00010494,2]
[407653262,1772619038149,-250.0,0.00010494,2]
[407653264,1772619038158,-500.0,0.00010494,2]
[407653266,1772619038167,-174.61919141,0.00010494,2]
[407653268,1772619038176,-250.0,0.00010494,2]
[407653270,1772619038185,-500.0,0.00010494,2]
[407653272,1772619038195,-181.08010149,0.00010494,2]
[407653274,1772619038203,-250.0,0.00010494,2]
[407653276,1772619038212,-187.78006525,0.00010494,2]
[407653277,1772619038223,-500.0,0.00010494,2]
[407653279,1772619038232,-250.0,0.00010494,2]
[407653281,1772619038242,-194.72792766,0.00010494,2]
[407653283,1772619038251,-500.0,0.00010494,2]
[407653285,1772619038261,-250.0,0.00010494,2]
[407653288,1772619038272,-500.0,0.00010494,2]
[407653289,1772619038285,-201.93286099,0.00010494,2]
[407653291,1772619038294,-250.0,0.00010494,2]
[407653293,1772619038305,-500.0,0.00010494,2]
[407653296,1772619038315,-250.0,0.00010494,2]
[407653297,1772619038325,-209.40437684,0.00010494,2]
[407653300,1772619038335,-500.0,0.00010494,2]
[407653302,1772619038345,-250.0,0.00010494,2]
[407653303,1772619038355,-217.15233878,0.00010494,2]
[407653305,1772619038365,-500.0,0.00010494,2]
[407653307,1772619038375,-225.18697532,0.00010494,2]